fUST/lending_fUST_20250929
["ID","MTS","AMOUNT","RATE_DAILY","PERIOD"]
[388332738,1759102240070,-941.59,0.0002756,7]
[388332739,1759102240079,-480.0,0.0002756,7]
[388332740,1759102240088,-480.0,0.0002756,7]
[388332742,1759102240098,-480.0,0.0002756,7]
[388332744,1759102240107,-480.62619393,0.0002756,7]
[388332746,1759102240115,-480.0,0.0002756,7]
[388332748,1759102240124,-1877.66,0.0002756,7]
[388332750,1759102240134,-1604.78,0.0002756,7]
[388332752,1759102240143,-480.0,0.0002756,7]
[388332754,1759102240152,-481.60465909,0.0002756,7]
[388332756,1759102240161,-480.0,0.0002756,7]
[388332757,1759102240171,-925.56,0.0002756,7]
[388332759,1759102240180,-617.96,0.0002756,7]
[388332761,1759102240189,-480.0,0.0002756,7]
[388332763,1759102240198,-500.0,0.0002756,7]
[388332765,1759102240208,-480.0,0.0002756,7]
[388332767,1759102240217,-834.14,0.0002756,7]
[388332770,1759102240227,-1663.0,0.0002756,7]
[388332772,1759102240236,-480.0,0.0002756,7]
[388332774,1759102240246,-1595.12,0.0002756,7]
[388332777,1759102240255,-1082.37,0.0002756,7]
[388332779,1759102240265,-827.4,0.0002756,7]
[388332781,1759102240275,-1121.3,0.0002756,7]
[388332783,1759102240284,-834.46,0.0002756,7]
[388332785,1759102240294,-571.89,0.0002756,7]
[388332787,1759102240303,-1815.07,0.0002756,7]
[388332789,1759102240312,-1648.79,0.0002756,7]
[388332790,1759102240321,-151.0,0.0002756,7]
[388332792,1759102240331,-151.0,0.0002756,7]
[388332794,1759102240339,-1503.77,0.0002756,7]
[388332795,1759102240349,-717.99,0.0002756,7]
[388332796,1759102240357,-764.56,0.0002756,7]
[388332797,1759102240366,-913.61,0.0002756,7]
[388332809,1759102240513,-977.7,0.0002756,7]
[388332812,1759102240565,-480.0,0.0002756,7]
[388332814,1759102240584,-2855.8,0.0002756,7]
[388332816,1759102240595,-1168.04,0.0002756,7]
[388332818,1759102240604,-874.51,0.0002756,7]
[388332820,1759102240613,-619.8,0.0002756,7]
[388332822,1759102240622,-1244.9,0.0002756,7]
[388332824,1759102240631,-2584.26,0.0002756,7]
[388332825,1759102240640,-4024.46,0.0002756,7]
[388332827,1759102240649,-480.0,0.0002756,7]
[388332829,1759102240658,-2133.94,0.0002756,7]
[388332831,1759102240667,-938.8,0.0002756,7]
[388332833,1759102240677,-1027.89,0.0002756,7]
[388332835,1759102240686,-1096.95,0.0002756,7]
[388332837,1759102240696,-613.2,0.0002756,7]
[388332839,1759102240705,-936.38,0.0002756,7]
[388332841,1759102240714,-624.93,0.0002756,7]
[388332843,1759102240724,-151.0,0.0002756,7]
[388332845,1759102240734,-151.0,0.0002756,7]
[388332847,1759102240743,-151.0,0.0002756,7]
[388332849,1759102240752,-151.0,0.0002756,7]
[388332851,1759102240761,-892.99,0.0002756,7]
[388332853,1759102240770,-158.634766,0.0002756,7]
[388332855,1759102240780,-480.0,0.0002756,7]
[388332857,1759102240790,-480.0,0.0002756,7]
[388332859,1759102240799,-266.12751506,0.0002756,7]
[388332861,1759102240810,-311.23673868,0.0002756,7]
[388332863,1759102240820,-480.0,0.0002756,7]
[388332865,1759102240830,-1776.5,0.0002756,7]
[388332866,1759102240839,-986.68,0.0002756,7]
[388332868,1759102240849,-483.99190447,0.0002756,7]
[388332870,1759102240857,-1446.43,0.0002756,7]
[388332872,1759102240866,-988.14,0.0002756,7]
[388332874,1759102240875,-1636.42,0.0002756,7]
[388332876,1759102240885,-480.0,0.0002756,7]
[388332878,1759102240893,-480.0,0.0002756,7]
[388332880,1759102240902,-1155.93,0.0002756,7]
[388332882,1759102240912,-480.0,0.0002756,7]
[388332884,1759102240920,-480.0,0.0002756,7]
[388332886,1759102240929,-480.0,0.0002756,7]
[388332888,1759102240938,-704.16,0.0002756,7]
[388332890,1759102240947,-981.97,0.0002756,7]
[388332892,1759102240957,-1715.69,0.0002756,7]
[388332894,1759102240965,-1101.32,0.0002756,7]
[388332896,1759102240975,-481.47998856,0.0002756,7]
[388332898,1759102240984,-1049.32,0.0002756,7]
[388332900,1759102240993,-510.29,0.0002756,7]
[388332902,1759102241002,-480.0,0.0002756,7]
[388332904,1759102241012,-480.0,0.0002756,7]
[388332906,1759102241021,-2451.05,0.0002756,7]
[388332908,1759102241030,-480.0,0.0002756,7]
[388332910,1759102241039,-777.39,0.0002756,7]
[388332912,1759102241048,-632.98,0.0002756,7]
[388332914,1759102241057,-1972.6,0.0002756,7]
[388332916,1759102241066,-487.85524876,0.0002756,7]
[388332918,1759102241076,-480.0,0.0002756,7]
[388332920,1759102241086,-646.31,0.0002756,7]
[388332922,1759102241094,-480.0,0.0002756,7]
[388332924,1759102241103,-480.0,0.0002756,7]
[388332926,1759102241113,-1304.56,0.0002756,7]
[388332928,1759102241122,-1199.94,0.0002756,7]
[388332929,1759102241131,-480.0,0.0002756,7]
[388332931,1759102241140,-7145.76,0.0002756,3]
[388332933,1759102241149,-480.0,0.0002756,7]
[388332935,1759102241158,-2080.78591462,0.0002756,7]
[388332937,1759102241167,-480.0,0.0002756,7]
[388332939,1759102241176,-480.0,0.0002756,7]
[388332941,1759102241185,-1728.93,0.0002756,7]
[388332943,1759102241194,-4468.53,0.0002756,7]
[388332945,1759102241204,-4309.12078271,0.00027574,2]
[388332947,1759102241213,-3473.30785337,0.00027584,2]
[388332949,1759102241222,-480.0,0.00027671,7]
[388332951,1759102241230,-944.82,0.00027671,7]
[388332953,1759102241239,-480.0,0.00027671,7]
[388332955,1759102241249,-480.0,0.00027671,7]
[388332957,1759102241258,-480.0,0.00027671,7]
[388332959,1759102241267,-523.13073769,0.00027671,7]
[388332961,1759102241277,-480.0,0.00027671,7]
[388332963,1759102241287,-1126.0,0.00027671,7]
[388332965,1759102241296,-480.0,0.00027671,7]
[388332967,1759102241305,-1794.73,0.00027671,7]
[388332969,1759102241315,-480.0,0.00027671,7]
[388332971,1759102241324,-2491.11,0.00027671,7]
[388332973,1759102241334,-5300.18,0.00027671,7]
[388332975,1759102241343,-760.45,0.00027671,7]
[388332977,1759102241352,-480.0,0.00027671,7]
[388332979,1759102241362,-480.0,0.00027671,7]
[388332981,1759102241370,-480.0,0.00027671,7]
[388332983,1759102241380,-480.0,0.00027671,7]
[388332985,1759102241389,-721.51,0.00027671,7]
[388332987,1759102241398,-480.0,0.00027671,7]
[388332989,1759102241407,-1497.56,0.00027671,7]
[388332991,1759102241416,-480.0,0.00027671,7]
[388332993,1759102241425,-480.0,0.00027671,7]
[388332995,1759102241436,-151.0,0.000277,10]
[388332997,1759102241445,-151.0,0.000277,17]
[388332999,1759102241455,-17610.90653612,0.00027723,2]
[388333001,1759102241466,-3473.30785337,0.00027724,2]
[388333003,1759102241475,-176.78704907,0.00027734,2]
[388333004,1759102241484,-151.0,0.00027789,7]
[388333006,1759102241493,-151.0,0.00027789,7]
[388333008,1759102241502,-153.294272,0.00027789,7]
[388333010,1759102241511,-151.0,0.000278,14]
[388333012,1759102241520,-384.612,0.00027807,17]
[388333014,1759102241528,-500.0,0.00027811,2]
[388333016,1759102241538,-4309.12078271,0.00027821,2]
[388333018,1759102241547,-4309.12078271,0.00027824,2]
[388333020,1759102241556,-151.0,0.00027824,7]
[388333022,1759102241565,-490.99,0.00027831,7]
[388333024,1759102241574,-480.0,0.00027831,7]
[388333026,1759102241583,-480.0,0.00027831,7]
[388333028,1759102241592,-480.0,0.00027831,7]
[388333030,1759102241602,-480.0,0.00027831,7]
[388333032,1759102241611,-9062.97,0.00027831,7]
[388333034,1759102241620,-2256.37,0.00027831,7]
[388333036,1759102241629,-1016.1,0.00027831,7]
[388333038,1759102241638,-953.35,0.00027831,7]
[388333040,1759102241647,-681.17,0.00027831,7]
[388333042,1759102241656,-1235.25,0.00027831,7]
[388333044,1759102241666,-4917.37,0.00027831,7]
[388333046,1759102241675,-480.0,0.00027831,7]
[388333048,1759102241685,-4761.03,0.00027831,7]
[388333050,1759102241694,-804.01,0.00027831,7]
[388333052,1759102241703,-480.0,0.00027831,7]
[388333054,1759102241712,-1957.46,0.00027831,7]
[388333056,1759102241721,-1251.81,0.00027831,7]
[388333058,1759102241731,-1004.81,0.00027831,7]
[388333060,1759102241740,-555.54,0.00027831,7]
[388333062,1759102241749,-515.59,0.00027831,7]
[388333064,1759102241759,-2103.29,0.00027831,7]
[388333066,1759102241768,-517.43,0.00027831,7]
[388333068,1759102241777,-3365.65,0.00027831,7]
[388333070,1759102241786,-2234.98,0.00027831,7]
[388333072,1759102241795,-480.0,0.00027833,7]
[388333074,1759102241804,-480.0,0.00027833,7]
[388333076,1759102241813,-621.55,0.00027833,7]
[388333078,1759102241822,-569.36,0.00027834,7]
[388333080,1759102241832,-480.0,0.00027834,7]
[388333081,1759102241841,-878.59,0.00027834,7]
[388333082,1759102241850,-480.0,0.00027834,7]
[388333083,1759102241860,-537.80239252,0.00027834,7]
[388333084,1759102241869,-507.06,0.00027834,7]
[388333085,1759102241879,-1048.76,0.00027834,7]
[388333086,1759102241888,-941.59,0.00027834,7]
[388333087,1759102241898,-480.0,0.00027834,7]
[388333088,1759102241907,-480.0,0.00027834,7]
[388333089,1759102241916,-480.0,0.00027834,7]
[388333090,1759102241926,-218.41536547,0.00027834,7]
[388333091,1759102241935,-1877.66,0.00027834,7]
[388333092,1759102241945,-1604.78,0.00027834,7]
[388333093,1759102241954,-480.0,0.00027834,7]
[388333094,1759102241963,-480.0,0.00027834,7]
[388333095,1759102241972,-925.56,0.00027834,7]
[388333096,1759102241981,-617.96,0.00027834,7]
[388333097,1759102241990,-480.0,0.00027834,7]
[388333098,1759102241999,-500.0,0.00027834,7]
[388333099,1759102242009,-480.0,0.00027834,7]
[388333100,1759102242018,-834.14,0.00027834,7]
[388333101,1759102242027,-1663.0,0.00027834,7]
[388333102,1759102242037,-480.0,0.00027834,7]
[388333103,1759102242046,-1595.12,0.00027834,7]
[388333104,1759102242055,-1082.37,0.00027834,7]
[388333105,1759102242064,-827.4,0.00027834,7]
[388333106,1759102242074,-1121.3,0.00027834,7]
[388333107,1759102242084,-834.46,0.00027834,7]
[388333108,1759102242093,-571.89,0.00027834,7]
[388333109,1759102242103,-1815.07,0.00027834,7]
[388333110,1759102242111,-1648.79,0.00027834,7]
[388333111,1759102242120,-1503.77,0.00027834,7]
[388333112,1759102242130,-717.99,0.00027834,7]
[388333113,1759102242139,-764.56,0.00027834,7]
[388333114,1759102242148,-913.61,0.00027834,7]
[388333115,1759102242158,-977.7,0.00027834,7]
[388333116,1759102242167,-480.0,0.00027834,7]
[388333117,1759102242176,-2855.8,0.00027834,7]
[388333118,1759102242186,-1168.04,0.00027834,7]
[388333119,1759102242195,-874.51,0.00027834,7]
[388333120,1759102242204,-619.8,0.00027834,7]
[388333121,1759102242214,-1244.9,0.00027834,7]
[388333122,1759102242223,-2584.26,0.00027834,7]
[388333123,1759102242233,-4024.46,0.00027834,7]
[388333124,1759102242242,-480.0,0.00027834,7]
[388333125,1759102242251,-2133.94,0.00027834,7]
[388333126,1759102242260,-938.8,0.00027834,7]
[388333127,1759102242269,-1027.89,0.00027834,7]
[388333128,1759102242279,-1096.95,0.00027834,7]
[388333129,1759102242288,-613.2,0.00027834,7]
[388333130,1759102242297,-936.38,0.00027834,7]
[388333131,1759102242306,-624.93,0.00027834,7]
[388333132,1759102242316,-892.99,0.00027834,7]
[388333133,1759102242325,-283.14143176,0.00027834,7]
[388333134,1759102242334,-480.0,0.00027834,7]
[388333135,1759102242343,-168.88002301,0.00027834,7]
[388333136,1759102242352,-1776.5,0.00027834,7]
[388333137,1759102242361,-986.68,0.00027834,7]
[388333138,1759102242371,-1446.43,0.00027834,7]
[388333139,1759102242380,-988.14,0.00027834,7]
[388333140,1759102242390,-1636.42,0.00027834,7]
[388333141,1759102242400,-480.0,0.00027834,7]
[388333142,1759102242409,-480.0,0.00027834,7]
[388333143,1759102242419,-1155.93,0.00027834,7]
[388333144,1759102242427,-480.0,0.00027834,7]
[388333145,1759102242436,-480.0,0.00027834,7]
[388333146,1759102242445,-480.0,0.00027834,7]
[388333147,1759102242458,-704.16,0.00027834,7]
[388333148,1759102242468,-981.97,0.00027834,7]
[388333149,1759102242478,-1715.69,0.00027834,7]
[388333150,1759102242487,-1101.32,0.00027834,7]
[388333151,1759102242499,-1049.32,0.00027834,7]
[388333152,1759102242508,-510.29,0.00027834,7]
[388333153,1759102242517,-480.0,0.00027834,7]
[388333154,1759102242526,-480.0,0.00027834,7]
[388333155,1759102242537,-2451.05,0.00027834,7]
[388333156,1759102242546,-480.0,0.00027834,7]
[388333157,1759102242555,-777.39,0.00027834,7]
[388333158,1759102242564,-632.98,0.00027834,7]
[388333159,1759102242574,-1972.6,0.00027834,7]
[388333160,1759102242583,-480.0,0.00027834,7]
[388333161,1759102242592,-646.31,0.00027834,7]
[388333162,1759102242601,-396.31714626,0.00027834,7]
[388333163,1759102242610,-480.0,0.00027834,7]
[388333164,1759102242621,-1304.56,0.00027834,7]
[388333165,1759102242630,-1199.94,0.00027834,7]
[388333166,1759102242639,-480.0,0.00027834,7]
[388333167,1759102242648,-7145.76,0.00027834,3]
[388333168,1759102242657,-480.0,0.00027834,7]
[388333169,1759102242666,-480.0,0.00027834,7]
[388333170,1759102242675,-480.0,0.00027834,7]
[388333172,1759102242684,-1728.93,0.00027834,7]
[388333174,1759102242694,-4468.53,0.00027834,7]
[388333176,1759102242703,-4309.12078271,0.00027861,2]
[388333178,1759102242713,-5053.40453846,0.00027887,2]
[388333179,1759102242723,-8618.24156542,0.00027887,2]
[388333181,1759102242732,-206.694341,0.00027888,7]
[388333182,1759102242741,-4309.12078271,0.00027889,2]
[388333184,1759102242750,-200.0,0.00027896,10]
[388333185,1759102242760,-480.0,0.00027896,7]
[388333186,1759102242770,-480.0,0.00027896,7]
[388333187,1759102242782,-500.0,0.00027896,7]
[388333188,1759102242792,-500.0,0.00027896,7]
[388333189,1759102242802,-500.0,0.00027896,7]
[388333190,1759102242812,-480.0,0.00027896,7]
[388333191,1759102242821,-480.0,0.00027896,7]
[388333192,1759102242830,-569.36,0.00027896,7]
[388333193,1759102242840,-480.0,0.00027897,7]
[388333194,1759102242850,-480.0,0.00027897,7]
[388333195,1759102242859,-480.0,0.00027897,7]
[388333196,1759102242868,-612.80976594,0.00027897,7]
[388333197,1759102242878,-480.0,0.00027897,7]
[388333198,1759102242887,-480.0,0.00027897,7]
[388333199,1759102242896,-480.0,0.00027897,7]
[388333200,1759102242905,-1547.74,0.00027897,7]
[388333201,1759102242915,-480.0,0.00027897,7]
[388333202,1759102242923,-480.0,0.00027897,7]
[388333203,1759102242933,-661.89,0.00027897,7]
[388333204,1759102242943,-480.0,0.00027897,7]
[388333205,1759102242952,-480.0,0.00027897,7]
[388333206,1759102242961,-480.0,0.00027897,7]
[388333207,1759102242971,-480.0,0.00027897,7]
[388333208,1759102242980,-480.0,0.00027897,7]
[388333209,1759102242989,-744.33,0.00027897,7]
[388333211,1759102242998,-702.79,0.00027897,7]
[388333213,1759102243008,-481.75097172,0.00027897,7]
[388333214,1759102243017,-447.39811165,0.00027897,7]
[388333215,1759102243026,-1026.92,0.00027897,7]
[388333217,1759102243036,-480.0,0.00027897,7]
[388333218,1759102243047,-774.88,0.00027897,7]
[388333220,1759102243057,-480.0,0.00027897,7]
[388333222,1759102243066,-480.0,0.00027897,7]
[388333223,1759102243076,-480.0,0.00027897,7]
[388333224,1759102243085,-6.86784739,0.00027897,7]
[388333225,1759102243366,-598.35215261,0.00027897,7]
[388333226,1759102243376,-233.82138094,0.00027897,7]
[388333227,1759102243385,-495.36,0.00027897,7]
[388333228,1759102243394,-480.0,0.00027897,7]
[388333229,1759102243403,-978.47,0.00027897,7]
[388333230,1759102243412,-776.63,0.00027897,7]
[388333231,1759102243421,-480.0,0.00027897,7]
[388333232,1759102243430,-480.0,0.00027897,7]
[388333233,1759102243439,-480.0,0.00027897,7]
[388333234,1759102243448,-480.0,0.00027897,7]
[388333235,1759102243460,-480.0,0.00027897,7]
[388333236,1759102243469,-480.0,0.00027897,7]
[388333237,1759102243478,-480.0,0.00027897,7]
[388333238,1759102243487,-480.0,0.00027897,7]
[388333239,1759102243496,-480.0,0.00027897,7]
[388333240,1759102243505,-480.0,0.00027897,7]
[388333241,1759102243515,-1064.64,0.00027897,7]
[388333242,1759102243524,-480.0,0.00027897,7]
[388333243,1759102243533,-513.31,0.00027897,7]
[388333244,1759102243543,-282.47934986,0.00027897,7]
[388333245,1759102243552,-480.0,0.00027897,7]
[388333246,1759102243561,-480.0,0.00027897,7]
[388333247,1759102243571,-1056.02,0.00027897,7]
[388333248,1759102243580,-1126.62,0.00027897,7]
[388333249,1759102243590,-480.0,0.00027897,7]
[388333250,1759102243600,-480.0,0.00027897,7]
[388333251,1759102243609,-890.13,0.00027897,7]
[388333253,1759102243618,-892.75,0.00027897,7]
[388333254,1759102243628,-480.0,0.00027897,7]
[388333255,1759102243636,-858.33,0.00027897,7]
[388333256,1759102243645,-589.68,0.00027897,7]
[388333257,1759102243654,-1024.69,0.00027897,7]
[388333258,1759102243664,-1082.2,0.00027897,7]
[388333259,1759102243673,-522.93,0.00027897,7]
[388333260,1759102243682,-480.0,0.00027897,7]
[388333261,1759102243691,-480.0,0.00027897,7]
[388333262,1759102243700,-230.557512,0.00027897,7]
[388333263,1759102243709,-480.0,0.00027897,7]
[388333265,1759102243718,-480.0,0.00027897,7]
[388333266,1759102243728,-480.0,0.00027897,7]
[388333267,1759102243737,-480.0,0.00027897,7]
[388333268,1759102243746,-480.52437686,0.00027897,7]
[388333269,1759102243755,-423.44418443,0.00027897,7]
[388333270,1759102243764,-568.05,0.00027897,7]
[388333271,1759102243774,-480.0,0.00027897,7]
[388333272,1759102243783,-481.35465878,0.00027897,7]
[388333273,1759102243792,-480.97225158,0.00027897,7]
[388333274,1759102243801,-480.0,0.00027897,7]
[388333275,1759102243810,-480.80938272,0.00027897,7]
[388333276,1759102243819,-521.59,0.00027897,7]
[388333277,1759102243829,-151.0,0.00027897,7]
[388333278,1759102243838,-151.0,0.00027897,7]
[388333279,1759102243847,-480.0,0.00027897,7]
[388333280,1759102243857,-500.0,0.00027897,7]
[388333281,1759102243866,-480.0,0.00027897,7]
[388333282,1759102243875,-480.0,0.00027897,7]
[388333283,1759102243884,-480.0,0.00027897,7]
[388333284,1759102243893,-480.0,0.00027897,7]
[388333285,1759102244086,-777.96,0.00027897,7]
[388333286,1759102244096,-1056.97,0.00027897,7]
[388333287,1759102244105,-480.74732216,0.00027897,7]
[388333288,1759102244114,-480.0,0.00027897,7]
[388333289,1759102244123,-500.0,0.00027897,7]
[388333290,1759102244132,-480.0,0.00027897,7]
[388333291,1759102244142,-611.88,0.00027897,7]
[388333292,1759102244151,-544.19,0.00027897,7]
[388333293,1759102244161,-480.0,0.00027897,7]
[388333294,1759102244170,-480.0,0.00027897,7]
[388333295,1759102244179,-480.0,0.00027897,7]
[388333296,1759102244189,-480.0,0.00027897,7]
[388333297,1759102244198,-480.0,0.00027897,7]
[388333298,1759102244207,-480.0,0.00027897,7]
[388333299,1759102244216,-480.0,0.00027897,7]
[388333300,1759102244226,-480.0,0.00027897,7]
[388333301,1759102244236,-645.96,0.00027897,7]
[388333302,1759102244245,-480.0,0.00027897,7]
[388333303,1759102244255,-480.0,0.00027897,7]
[388333304,1759102244264,-480.0,0.00027897,7]
[388333305,1759102244274,-589.84,0.00027897,7]
[388333306,1759102244283,-571.22,0.00027897,7]
[388333307,1759102244292,-480.0,0.00027897,7]
[388333308,1759102244302,-480.0,0.00027897,7]
[388333309,1759102244311,-480.0,0.00027897,7]
[388333310,1759102244322,-480.0,0.00027897,7]
[388333311,1759102244332,-480.0,0.00027897,7]
[388333312,1759102244341,-495.41824026,0.00027897,7]
[388333313,1759102244351,-480.0,0.00027897,7]
[388333314,1759102244362,-480.0,0.00027897,7]
[388333315,1759102244371,-480.0,0.00027897,7]
[388333316,1759102244381,-480.0,0.00027897,7]
[388333317,1759102244390,-480.0,0.00027897,7]
[388333318,1759102244399,-480.0,0.00027897,7]
[388333319,1759102244408,-480.0,0.00027897,7]
[388333320,1759102244417,-480.0,0.00027897,7]
[388333321,1759102244426,-480.0,0.00027897,7]
[388333322,1759102244435,-589.53,0.00027897,7]
[388333323,1759102244444,-480.0,0.00027897,7]
[388333324,1759102244454,-652.92,0.00027897,7]
[388333325,1759102244467,-480.0,0.00027897,7]
[388333326,1759102244477,-480.0,0.00027897,7]
[388333327,1759102244486,-480.0,0.00027897,7]
[388333328,1759102244496,-704.85,0.00027897,7]
[388333329,1759102244506,-480.0,0.00027897,7]
[388333330,1759102244515,-480.0,0.00027897,7]
[388333331,1759102244524,-677.46,0.00027897,7]
[388333332,1759102244535,-480.0,0.00027897,7]
[388333333,1759102244544,-586.96,0.00027897,7]
[388333334,1759102244553,-480.0,0.00027897,7]
[388333335,1759102244562,-480.0,0.00027897,7]
[388333336,1759102244571,-480.0,0.00027897,7]
[388333337,1759102244580,-1258.07,0.00027897,7]
[388333338,1759102244590,-1308.78,0.00027897,7]
[388333339,1759102244599,-480.0,0.00027897,7]
[388333340,1759102244607,-480.0,0.00027897,7]
[388333341,1759102244617,-480.0,0.00027897,7]
[388333342,1759102244626,-480.0,0.00027897,7]
[388333343,1759102244636,-959.65,0.00027897,7]
[388333344,1759102244644,-540.81,0.00027897,7]
[388333345,1759102244654,-4223.42,0.00027897,7]
[388333346,1759102244662,-2612.12,0.00027897,7]
[388333347,1759102244671,-480.0,0.00027897,7]
[388333348,1759102244680,-662.39,0.00027897,7]
[388333349,1759102244689,-237.64819244,0.00027897,7]
[388333350,1759102244698,-480.0,0.00027897,7]
[388333351,1759102244707,-480.0,0.00027897,7]
[388333352,1759102244717,-2112.02,0.00027897,7]
[388333353,1759102244726,-480.0,0.00027897,7]
[388333354,1759102244735,-833.01,0.00027897,7]
[388333355,1759102244744,-480.0,0.00027897,7]
[388333356,1759102244753,-480.0,0.00027897,7]
[388333357,1759102244762,-480.0,0.00027897,7]
[388333358,1759102244771,-480.0,0.00027897,7]
[388333359,1759102244780,-480.0,0.00027897,7]
[388333360,1759102244790,-511.94,0.00027897,7]
[388333361,1759102244799,-1135.75,0.00027897,7]
[388333362,1759102244808,-9648.91,0.00027897,7]
[388333363,1759102244817,-480.0,0.00027897,7]
[388333364,1759102244826,-1833.7,0.00027897,7]
[388333365,1759102244835,-480.0,0.00027897,7]
[388333366,1759102244844,-673.81,0.00027897,7]
[388333367,1759102244853,-480.0,0.00027897,7]
[388333368,1759102244862,-5118.65,0.00027897,7]
[388333369,1759102244871,-480.0,0.00027897,7]
[388333370,1759102244881,-480.0,0.00027897,7]
[388333371,1759102244890,-480.0,0.00027897,7]
[388333372,1759102244899,-790.22,0.00027897,7]
[388333373,1759102244907,-177.49791654,0.00027897,7]
[388333374,1759102244917,-378.63337104,0.00027897,7]
[388333375,1759102244925,-480.0,0.00027897,7]
[388333376,1759102244934,-160.0,0.00027897,3]
[388333377,1759102244943,-830.12,0.00027897,7]
[388333378,1759102244952,-480.0,0.00027897,7]
[388333379,1759102244961,-480.0,0.00027897,7]
[388333380,1759102244971,-480.0,0.00027897,7]
[388333381,1759102244980,-4908.66,0.00027897,7]
[388333382,1759102244988,-889.6,0.00027898,7]
[388333383,1759102244997,-480.0,0.00027898,7]
[388333384,1759102245006,-480.0,0.00027898,7]
[388333385,1759102245014,-480.0,0.00027898,7]
[388333386,1759102245024,-480.0,0.00027898,7]
[388333387,1759102245033,-480.0,0.00027898,7]
[388333388,1759102245041,-500.0,0.00027898,7]
[388333389,1759102245051,-1126.62,0.00027898,7]
[388333390,1759102245059,-500.0,0.00027898,7]
[388333391,1759102245069,-692.06,0.00027899,7]
[388333392,1759102245078,-757.57,0.00027899,7]
[388333393,1759102245088,-480.0,0.00027899,7]
[388333394,1759102245098,-480.0,0.00027899,7]
[388333395,1759102245107,-480.0,0.00027899,7]
[388333396,1759102245116,-480.0,0.00027899,7]
[388333397,1759102245125,-189.35579204,0.00027899,7]
[388333398,1759102245134,-233.82138094,0.00027899,7]
[388333399,1759102245143,-2478.15,0.00027899,7]
[388333400,1759102245152,-480.0,0.00027899,7]
[388333401,1759102245161,-480.0,0.00027899,7]
[388333402,1759102245170,-151.0,0.000279,16]
[388333403,1759102245179,-480.0,0.00027945,7]
[388333404,1759102245188,-944.82,0.00027945,7]
[388333405,1759102245197,-480.0,0.00027945,7]
[388333406,1759102245210,-480.0,0.00027945,7]
[388333407,1759102245219,-480.0,0.00027945,7]
[388333408,1759102245228,-480.0,0.00027945,7]
[388333409,1759102245237,-1126.0,0.00027945,7]
[388333410,1759102245247,-492.41371992,0.00027945,7]
[388333411,1759102245255,-1794.73,0.00027945,7]
[388333412,1759102245265,-480.0,0.00027945,7]
[388333413,1759102245274,-2491.11,0.00027945,7]
[388333414,1759102245283,-5300.18,0.00027945,7]
[388333415,1759102245292,-760.45,0.00027945,7]
[388333416,1759102245301,-248.54025382,0.00027945,7]
[388333417,1759102245309,-480.0,0.00027945,7]
[388333418,1759102245318,-480.0,0.00027945,7]
[388333419,1759102245327,-480.0,0.00027945,7]
[388333420,1759102245336,-721.51,0.00027945,7]
[388333421,1759102245346,-480.0,0.00027945,7]
[388333422,1759102245356,-1497.56,0.00027945,7]